bitfinex-derivatives/quotes_SOLF0:USTF0_20250528
["timestamp","ask_amount","ask_price","bid_price","bid_amount"]
[1748444733225,3.9482,170.47,170.38,37.8067]
[1748444733429,5.8653,170.43,170.38,37.8067]
[1748444733733,0.0371516,170.42,170.39,5.90635148]
[1748444734533,0.0371516,170.42,170.4,5.8662]
[1748444735044,0.0371516,170.42,170.39,0.03975148]
[1748444735435,0.0371516,170.42,170.39,5.90615148]
[1748444736338,0.0371516,170.42,170.39,0.03975148]
[1748444737139,0.0371516,170.42,170.39,5.90635148]
[1748444737430,0.0371516,170.42,170.39,0.03975148]
[1748444739238,5.866,170.41,170.39,0.03975148]
[1748444739744,5.9028516,170.42,170.39,5.90635148]
[1748444739945,5.9028516,170.42,170.39,0.03975148]
[1748444740146,0.0371516,170.42,170.39,0.03975148]
[1748444740342,8.99,170.46,170.39,0.03975148]
[1748444740739,5.8647,170.45,170.39,0.03975148]
[1748444741250,0.04067585,170.44,170.41,5.8657]
[1748444741452,0.04067585,170.44,170.41,37.8057]
[1748444741644,0.04067585,170.44,170.41,31.94]
[1748444741949,0.04067585,170.44,170.42,5.8655]
[1748444742153,0.04067585,170.44,170.41,31.94]
[1748444743550,0.04067585,170.44,170.43,5.8652]
[1748444745151,0.04067585,170.44,170.43,37.7852]
[1748444746257,0.04067585,170.44,170.43,5.8652]
[1748444746453,0.04067585,170.44,170.43,37.7852]
[1748444749657,8.99,170.46,170.43,31.92]
[1748444749949,12.73,170.49,170.43,31.92]
[1748444750148,12.73,170.49,170.48,5.8635]
[1748444750349,12.73,170.49,170.48,37.7835]
[1748444750550,5.862,170.53,170.48,37.7835]
[1748444750859,0.04334522,170.5,170.48,31.92]
[1748444751249,0.04334522,170.5,170.47,0.04262507]
[1748444751456,5.8635,170.48,170.47,0.04262507]
[1748444751761,0.04334522,170.5,170.47,0.04262507]
[1748444752650,5.8635,170.48,170.47,0.04262507]
[1748444753055,0.04334522,170.5,170.47,0.04262507]
[1748444753252,5.8634,170.49,170.47,0.04262507]
[1748444754161,0.04334522,170.5,170.47,5.90642507]
[1748444754452,5.90644522,170.5,170.47,5.90642507]
[1748444754847,0.04334522,170.5,170.47,0.04262507]
[1748444755051,5.90644522,170.5,170.47,5.90642507]
[1748444755651,5.8632,170.49,170.47,0.04262507]
[1748444756053,5.90644522,170.5,170.47,0.04262507]
[1748444756249,5.90644522,170.5,170.47,5.90642507]
[1748444756455,0.04334522,170.5,170.47,0.04262507]
[1748444756657,5.8632,170.49,170.47,0.04262507]
[1748444756961,0.04334522,170.5,170.47,0.04262507]
[1748444757353,5.90634522,170.5,170.47,0.04262507]
[1748444757559,0.04334522,170.5,170.47,0.04262507]
[1748444758855,5.8635,170.48,170.47,0.04262507]
[1748444759261,5.90624522,170.5,170.47,0.04262507]
[1748444759461,0.04334522,170.5,170.47,0.04262507]
[1748444759661,0.04334522,170.5,170.47,5.90632507]
[1748444759857,0.04334522,170.5,170.47,0.04262507]
[1748444760255,0.04334522,170.5,170.47,5.90622507]
[1748444760463,0.04334522,170.5,170.47,0.04262507]
[1748444761157,5.8634,170.49,170.47,0.04262507]
[1748444761960,5.90624522,170.5,170.47,5.90642507]
[1748444763160,0.04334522,170.5,170.47,0.04262507]
[1748444763761,0.04334522,170.5,170.47,5.90642507]
[1748444764362,0.04334522,170.5,170.48,5.8634]
[1748444764562,0.04334522,170.5,170.47,0.04262507]
[1748444764762,5.90634522,170.5,170.47,0.04262507]
[1748444764965,0.04334522,170.5,170.47,0.04262507]
[1748444765363,5.8635,170.48,170.47,0.04262507]
[1748444766065,0.04334522,170.5,170.47,0.04262507]
[1748444766466,0.04334522,170.5,170.48,5.8634]
[1748444766666,0.04334522,170.5,170.47,0.04262507]
[1748444768471,5.8632,170.49,170.47,0.04262507]
[1748444768970,5.8635,170.48,170.47,0.04262507]
[1748444769357,0.04334522,170.5,170.47,0.04262507]
[1748444769568,5.8632,170.49,170.47,0.04262507]
[1748444769761,0.04334522,170.5,170.47,0.04262507]
[1748444770166,0.04334522,170.5,170.41,37.4657]
[1748444770366,0.04334522,170.5,170.37,2.055]
[1748444770367,31.6,170.49,170.32,506.98]
[1748444770567,37.5561,170.48,170.33,31.6]
[1748444770764,31.6,170.47,170.34,5.8682]
[1748444770966,31.6,170.47,170.33,31.6]
[1748444771165,0.04451879,170.42,170.38,0.03922392]
[1748444771366,5.8666,170.39,170.38,0.03922392]
[1748444771959,5.8664,170.4,170.38,0.03922392]
[1748444772464,2.0107,170.41,170.38,0.03922392]
[1748444773265,0.04451879,170.42,170.38,0.03922392]
[1748444773471,0.04451879,170.42,170.41,5.8659]
[1748444773763,7.931,170.47,170.41,31.6]
[1748444773764,2.067,170.47,170.41,31.6]
[1748444773969,2.067,170.47,170.43,5.865]
[1748444774663,5.8643,170.46,170.43,5.865]
[1748444774861,2.1095062,170.47,170.43,5.90842052]
[1748444775364,7.9735062,170.47,170.44,5.8649]
[1748444775670,5.8649,170.44,170.43,0.04342052]
[1748444775867,2.1095062,170.47,170.43,0.04342052]
[1748444776169,2.1095062,170.47,170.39,31.6]
[1748444776473,2.067,170.47,170.36,31.6]
[1748444777272,5.90329961,170.43,170.4,0.03972643]
[1748444778071,5.90329961,170.43,170.4,5.90592643]
[1748444778475,0.03799961,170.43,170.4,5.90582643]
[1748444778974,5.90349961,170.43,170.4,0.03972643]
[1748444779279,5.90349961,170.43,170.4,5.90602643]
[1748444780774,0.03799961,170.43,170.4,0.03972643]
[1748444781272,0.03799961,170.43,170.41,5.8659]
[1748444781776,0.03799961,170.43,170.4,31.63972643]
[1748444782369,0.03799961,170.43,170.42,5.8656]
[1748444782572,31.6,170.53,170.4,31.63972643]
[1748444782767,33.5892,170.53,170.4,31.6]
[1748444783070,5.8634,170.49,170.4,31.6]
[1748444783375,33.5892,170.53,170.4,31.6]
[1748444783676,0.04453775,170.47,170.44,0.04313025]
[1748444783880,0.04453775,170.47,170.45,31.62]
[1748444784275,0.04453775,170.47,170.46,5.8642]
[1748444788175,14.87,170.51,170.49,5.8629]
[1748444788581,12.72,170.53,170.49,31.62]
[1748444789377,12.72,170.53,170.49,31.66259011]
[1748444789679,12.72,170.53,170.49,0.04259011]
[1748444790076,5.8628,170.5,170.49,0.04259011]
[1748444790579,5.8628,170.51,170.49,0.04259011]
[1748444790973,12.72,170.53,170.49,0.04259011]
[1748444791679,5.8627,170.51,170.49,0.04259011]
[1748444792579,5.8628,170.5,170.49,0.04259011]
[1748444792785,12.72,170.53,170.45,31.62]
[1748444792786,0.04381072,170.51,170.45,31.62]
[1748444792976,0.04381072,170.51,170.41,31.6]
[1748444793176,44.32,170.53,170.42,5.8654]
[1748444793373,44.32,170.53,170.4,31.6]
[1748444793878,0.04322898,170.48,170.45,0.04175248]
[1748444794080,5.8639,170.47,170.45,0.04175248]
[1748444794383,0.04322898,170.48,170.45,0.04175248]
[1748444794779,5.8642,170.46,170.45,0.04175248]
[1748444795279,5.8639,170.47,170.45,0.04175248]
[1748444795476,0.04322898,170.48,170.45,0.04175248]
[1748444796789,4.15202898,170.48,170.45,0.04175248]
[1748444797089,5.8642,170.46,170.45,0.04175248]
[1748444797877,5.8656,170.43,170.4,31.6]
[1748444798283,2.0878,170.47,170.4,31.6]
[1748444798880,0.04438664,170.45,170.42,0.04208458]
[1748444799084,5.8652,170.43,170.42,0.04208458]
[1748444799385,0.04438664,170.45,170.42,0.04208458]
[1748444799880,31.62,170.44,170.25,3.46192706]
[1748444800080,31.62,170.44,170.25,4.0442]
[1748444800280,5.8681,170.35,170.25,4.0442]
[1748444800685,0.04061439,170.32,170.28,0.04395182]
[1748444800886,0.04489821,170.32,170.29,31.62]
[1748444801085,0.04489821,170.32,170.3,5.8696]
[1748444802090,0.04489821,170.32,170.29,37.49]
[1748444802290,0.04489821,170.32,170.29,31.62]
[1748444802587,0.04489821,170.32,170.28,0.04066203]
[1748444803385,5.8696,170.31,170.28,0.04066203]
[1748444804978,0.04489821,170.32,170.28,0.04066203]
[1748444805490,0.04489821,170.32,170.29,31.62]
[1748444805890,0.04489821,170.32,170.31,5.8694]
[1748444806090,35.6827,170.39,170.29,31.62]
[1748444806290,4.0627,170.39,170.29,33.5893]
[1748444806590,31.62,170.41,170.36,5.8674]
[1748444807083,0.04263163,170.4,170.37,0.04484371]
[1748444807593,0.04263163,170.4,170.37,5.91214371]
[1748444807993,0.04263163,170.4,170.37,0.04484371]
[1748444808397,5.8669,170.39,170.37,0.04484371]
[1748444808587,0.04263163,170.4,170.37,0.04484371]
[1748444808984,5.90913163,170.4,170.37,0.04484371]
[1748444811194,5.90913163,170.4,170.37,5.91214371]
[1748444811389,5.90913163,170.4,170.37,0.04484371]
[1748444813294,0.04263163,170.4,170.37,5.91204371]
[1748444813695,0.04263163,170.4,170.37,0.04484371]
[1748444813892,12.72,170.53,170.38,31.48]
[1748444814090,12.72,170.53,170.39,153.5804]
[1748444814396,5.8628,170.51,170.39,4.1604]
[1748444814597,12.72,170.53,170.4,149.4]
[1748444814898,0.04411851,170.48,170.45,0.04032928]
[1748444817295,5.90781851,170.48,170.45,0.04032928]
[1748444817495,0.04411851,170.48,170.45,0.04032928]
[1748444818299,5.8642,170.46,170.45,0.04032928]
[1748444818904,37.34,170.46,170.25,31.48]
[1748444819089,31.48,170.46,170.25,31.48]
[1748444819295,31.48,170.46,170.25,149.3]
[1748444819590,5.8687,170.34,170.3,5.8697]
[1748444819893,0.04080468,170.34,170.3,0.04320614]
[1748444822599,0.04080468,170.34,170.3,5.91260614]
[1748444823103,0.04080468,170.34,170.3,0.04320614]
[1748444823800,0.04080468,170.34,170.32,5.869]
[1748444824298,0.04080468,170.34,170.33,5.8687]
[1748444833605,0.04080468,170.34,170.32,5.8689]
[1748444833807,0.04080468,170.34,170.3,31.54320614]
[1748444834201,0.04080468,170.34,170.32,5.869]
[1748444834405,0.04080468,170.34,170.3,31.54320614]
[1748444835103,15.07080468,170.34,170.3,31.54320614]
[1748444835309,20.93920468,170.34,170.31,5.8691]
[1748444835610,20.93920468,170.34,170.3,31.54320614]
[1748444835611,15.07080468,170.34,170.3,31.54320614]
[1748444836404,15.07080468,170.34,170.3,37.41270614]
[1748444837202,15.07080468,170.34,170.3,31.54320614]
[1748444838011,15.07080468,170.34,170.3,0.04320614]
[1748444840908,46.57080468,170.34,170.14,11.7502]
[1748444841110,46.53,170.34,170.18,538.3]
[1748444841809,5.872,170.24,170.2,5.873]
[1748444842209,5.8725,170.23,170.2,0.04082112]
[1748444842415,0.0393386,170.24,170.2,0.04082112]
[1748444842706,0.0393386,170.24,170.21,5.8726]
[1748444843511,0.0393386,170.24,170.22,5.8724]
[1748444843710,0.0393386,170.24,170.2,0.04082112]
[1748444844613,0.0393386,170.24,170.11,31.38]
[1748444844614,5.8746,170.16,170.11,31.38]
[1748444844913,31.38,170.22,170.11,31.38]
[1748444845110,35.374,170.21,170.11,31.38]
[1748444845310,31.38,170.2,170.11,31.38]
[1748444845510,31.38,170.2,170.14,0.04446143]
[1748444845713,0.04097538,170.17,170.14,0.04446143]
[1748444845911,0.04097538,170.17,170.14,5.91936143]
[1748444847119,0.04097538,170.17,170.05,31.38]
[1748444847412,31.38,170.2,170.05,31.38]
[1748444847605,5.8757,170.13,170.09,5.8767]
[1748444847805,31.4,170.16,170.05,31.38]
[1748444848007,0.0439233,170.12,170.09,0.03865243]
[1748444848318,5.8763,170.11,170.09,0.03865243]
[1748444848515,0.0439233,170.12,170.09,0.03865243]
[1748444848717,5.8773,170.08,170.02,31.4]
[1748444848915,2.0907,170.11,170.02,31.4]
[1748444849426,5.8776,170.08,170.04,5.8784]
[1748444849606,5.8776,170.08,170.02,31.4]
[1748444849812,0.0446047,170.07,170.03,0.04149035]
[1748444850115,0.0446047,170.07,170.05,5.8782]
[1748444850711,0.0446047,170.07,170.04,5.8784]
[1748444851118,0.0446047,170.07,170.03,0.04149035]
[1748444851415,0.0446047,170.07,170.06,5.878]
[1748444851613,14.82,170.1,170.06,31.4]
[1748444852115,14.82,170.1,170.09,5.8769]
[1748444852716,14.82,170.1,170.08,0.04125468]
[1748444854218,5.877,170.09,170.08,0.04125468]
[1748444854419,14.82,170.1,170.02,31.4]
[1748444854716,14.82,170.1,170.02,37.2793]
[1748444855419,5.8779,170.07,170.04,0.04376747]
[1748444855619,0.03995244,170.08,170.04,0.04376747]
[1748444856115,330.4,170.07,169.87,31.4]
[1748444856317,4.0583,170.06,169.88,2.0164]
[1748444856515,299.0,170.05,169.88,2.0164]
[1748444856818,299.0,170.04,169.84,117.04545455]
[1748444857007,0.03877324,169.96,169.92,0.04484642]
[1748444857212,0.03816265,169.96,169.92,0.04220176]
[1748444857413,0.03816265,169.96,169.86,31.42]
[1748444857916,5.91986265,169.96,169.86,31.42]
[1748444858222,0.03816265,169.96,169.86,31.42]
[1748444858416,0.03816265,169.96,169.89,0.04493419]
[1748444858717,0.03816265,169.96,169.9,37.3032]
[1748444859519,0.03816265,169.96,169.9,31.42]
[1748444861523,0.03816265,169.96,169.91,2.0928]
[1748444862921,0.03816265,169.96,169.93,5.8822]
[1748444863120,0.03816265,169.96,169.93,0.04259489]
[1748444864229,0.03816265,169.96,169.95,5.8818]
[1748444864415,31.42,170.03,169.94,31.44]
[1748444864817,5.8795,170.02,169.98,5.8805]
[1748444865122,1.9047,170.05,169.94,31.44]
[1748444865628,0.03731915,170.01,169.86,31.44]
[1748444865819,31.44,170.0,169.86,31.44]
[1748444866021,31.44,169.99,169.86,31.44]
[1748444866326,29.3675,170.04,169.86,31.44]
[1748444866327,33.3585,169.98,169.86,31.44]
[1748444866523,0.04268868,169.94,169.9,0.04457868]
[1748444867231,5.8831,169.92,169.9,0.04457868]
[1748444867621,0.04268868,169.94,169.9,0.04457868]
[1748444867829,5.8832,169.91,169.9,0.04457868]
[1748444869837,5.8845,169.88,169.84,117.04545455]
[1748444870030,31.44,169.93,169.84,117.04545455]
[1748444870228,1.9092,169.96,169.84,117.04545455]
[1748444870424,5.8851,169.86,169.84,117.04545455]
[1748444870731,31.44,169.9,169.84,117.04545455]
[1748444870929,0.0418769,169.89,169.85,0.0424252]
[1748444872531,0.0418769,169.89,169.84,117.04545455]
[1748444872730,31.44,169.88,169.84,117.04545455]
[1748444872930,0.0418769,169.89,169.84,117.04545455]
[1748444873331,0.0418769,169.89,169.87,5.8845]
[1748444873527,0.0418769,169.89,169.86,0.03848906]
[1748444873934,0.0418769,169.89,169.88,5.8842]
[1748444874439,14.81,169.92,169.91,5.8832]
[1748444874733,14.81,169.92,169.85,31.44]
[1748444875137,14.81,169.92,169.9,5.8834]
[1748444875338,14.81,169.92,169.89,0.04366305]
[1748444876033,14.81,169.92,169.89,5.92736305]
[1748444877435,20.693,169.92,169.89,0.04366305]
[1748444877634,11.78,169.91,169.89,0.04366305]
[1748444878535,11.78,169.91,169.9,5.8835]
[1748444880138,11.78,169.91,169.9,7.911]
[1748444881037,11.78,169.91,169.9,2.0275]
[1748444882539,17.6634,169.91,169.89,31.98366305]
[1748444882844,11.78,169.91,169.89,31.98366305]
[1748444883442,5.8835,169.9,169.89,31.98366305]
[1748444883747,11.78,169.91,169.84,148.98545455]
[1748444883953,5.8853,169.85,169.84,148.98545455]
[1748444885248,5.8853,169.85,169.84,117.04545455]
[1748444889051,43.7253,169.85,169.84,3.391e-05]
[1748444889356,37.8453,169.85,169.84,3.391e-05]
[1748444891555,5.8853,169.85,169.84,3.391e-05]
[1748444892459,0.04436552,169.86,169.84,3.391e-05]
[1748444892755,5.8852,169.85,169.84,3.391e-05]
[1748444893452,5.92936552,169.86,169.84,3.391e-05]
[1748444894159,5.8852,169.85,169.84,3.391e-05]
[1748444895150,37.8452,169.85,169.84,3.391e-05]
[1748444895751,37.8452,169.85,169.76,31.96]
[1748444895752,5.8878,169.78,169.76,31.96]
[1748444895945,31.96,169.85,169.76,31.96]
[1748444896551,31.96,169.85,169.72,37.99]
[1748444896751,0.04034381,169.8,169.77,0.03822972]
[1748444896953,32.00034381,169.8,169.69,31.96]
[1748444897261,37.8464,169.82,169.76,5.8882]
[1748444897450,5.8864,169.82,169.76,5.8882]
[1748444897655,31.96,169.83,169.74,31.96]
[1748444897849,15.84,169.81,169.74,31.96]
[1748444898055,0.03904251,169.8,169.77,0.04368984]
[1748444898458,0.03904251,169.8,169.79,5.8872]
[1748444898658,15.84,169.81,169.78,3.9825]
[1748444898860,15.84,169.81,169.78,35.9425]
[1748444899251,15.84,169.81,169.79,5.887]
[1748444899665,15.84,169.81,169.78,35.9425]
[1748444899860,15.84,169.81,169.79,5.8871]
[1748444900258,15.84,169.81,169.78,35.9425]
[1748444900466,0.04341493,169.82,169.78,35.9425]
[1748444900663,33.9386,169.91,169.78,35.9425]
[1748444900959,31.96,169.91,169.78,35.9425]
[1748444901167,14.81,169.92,169.78,35.9425]
[1748444901760,14.81,169.92,169.83,0.03991024]
[1748444901970,14.81,169.92,169.91,5.8832]
[1748444902160,31.96,169.99,169.9,31.96]
[1748444902462,31.96,169.99,169.91,31.96]
[1748444902862,5.8821,169.94,169.93,0.04248071]
[1748444903359,0.04015176,169.97,169.87,31.96]
[1748444903663,33.9561,169.99,169.86,31.96]
[1748444903854,33.9561,169.99,169.85,31.96]
[1748444904257,0.03865923,169.94,169.9,0.03892033]
[1748444904461,31.78,169.93,169.9,0.03892033]
[1748444904662,5.8832,169.91,169.9,0.03892033]
[1748444905761,5.8849,169.86,169.85,31.96]
[1748444905961,3.9908,169.92,169.81,31.76]
[1748444906155,3.9908,169.92,169.82,5.886]
[1748444906359,5.8849,169.86,169.81,31.76]
[1748444906563,3.9908,169.92,169.81,31.76]
[1748444906764,5.8849,169.86,169.85,0.04080981]
[1748444908863,5.8849,169.86,169.85,9.81e-06]
[1748444911161,11.7649,169.86,169.85,9.81e-06]
[1748444911969,5.8849,169.86,169.85,9.81e-06]
[1748444915669,11.7649,169.86,169.85,9.81e-06]
[1748444916374,5.8849,169.86,169.85,9.81e-06]
[1748444916673,11.7649,169.86,169.85,9.81e-06]
[1748444918370,5.8849,169.86,169.85,9.81e-06]
[1748444921978,37.6649,169.86,169.85,9.81e-06]
[1748444923869,43.5449,169.86,169.85,9.81e-06]
[1748444924771,37.6649,169.86,169.85,9.81e-06]
[1748444925175,43.5449,169.86,169.85,9.81e-06]
[1748444925375,37.6649,169.86,169.85,9.81e-06]
[1748444925979,43.5449,169.86,169.85,9.81e-06]
[1748444926688,5.8899,169.72,169.7,31.78]
[1748444926879,31.78,169.78,169.65,4.0443]
[1748444927079,31.78,169.78,169.67,5.8914]
[1748444927378,31.78,169.78,169.65,35.8243]
[1748444927679,5.8901,169.71,169.7,0.04469192]
[1748444930182,0.03745416,169.73,169.63,5.87988983]
[1748444930482,31.78,169.72,169.63,5.87988983]
[1748444930677,5.891,169.69,169.64,6.1657]
[1748444930873,31.78,169.71,169.64,6.1657]
[1748444930874,31.78,169.72,169.64,6.1657]
[1748444931072,0.0422142,169.7,169.64,12.058]
[1748444931275,5.8914,169.68,169.66,0.02727897]
[1748444931681,0.0422142,169.7,169.66,0.02727897]
[1748444932987,5.8912,169.68,169.66,0.02727897]
[1748444933281,0.0422142,169.7,169.66,0.02727897]
[1748444933480,5.8915,169.67,169.66,0.02727897]
[1748444934788,5.8915,169.67,169.66,7.897e-05]
[1748444936392,31.9222142,169.7,169.66,7.897e-05]
[1748444936785,5.8914,169.68,169.66,7.897e-05]
[1748444936985,31.9222142,169.7,169.66,7.897e-05]
[1748444937484,5.8915,169.67,169.66,7.897e-05]
[1748444938178,5.8915,169.67,169.59,0.21488]
[1748444938179,5.9,169.67,169.59,0.21488]
[1748444938483,31.88,169.66,169.59,0.21488]
[1748444938686,31.88,169.74,169.59,0.21488]
[1748444938890,31.88,169.73,169.59,2.15758]
[1748444939189,0.0436675,169.68,169.6,3.9557]
[1748444939390,31.9236675,169.68,169.6,3.9557]
[1748444941381,5.8934,169.62,169.6,3.9557]
[1748444941695,0.0384236,169.63,169.62,5.8932]
[1748444941892,31.88,169.69,169.61,0.04005761]
[1748444942092,31.88,169.7,169.6,3.9557]
[1748444942388,5.8925,169.64,169.6,3.9557]
[1748444942692,31.88,169.7,169.6,3.9557]
[1748444942892,0.04051082,169.67,169.63,0.04005761]
[1748444943592,5.93221082,169.67,169.63,5.93265761]
[1748444943994,5.8918,169.66,169.63,0.04005761]
[1748444944486,5.93231082,169.67,169.63,5.93255761]
[1748444944696,0.04051082,169.67,169.63,0.04005761]
[1748444945483,5.8921,169.66,169.63,0.04005761]
[1748444945695,0.04051082,169.67,169.63,0.04005761]
[1748444945998,14.42,169.69,169.68,5.8911]
[1748444946181,8.0876,169.69,169.64,31.88]
[1748444946382,15.8528,169.8,169.64,31.88]
[1748444946586,5.89,169.72,169.64,31.88]
[1748444946795,31.88,169.75,169.64,31.88]
[1748444946983,0.0421124,169.71,169.68,0.04534914]
[1748444947190,5.891,169.69,169.68,0.0430938]
[1748444947387,0.03911656,169.71,169.68,0.0430938]
[1748444947595,5.8907,169.7,169.68,0.0430938]
[1748444947890,0.03911656,169.71,169.68,0.0430938]
[1748444948098,5.8908,169.69,169.68,0.0430938]
[1748444948995,31.88,169.7,169.6,35.8357]
[1748444949388,31.88,169.7,169.6,3.9557]
[1748444949593,31.88,169.7,169.6,1.967]
[1748444949895,0.041741,169.67,169.63,0.03747463]
[1748444950092,31.88,169.66,169.63,0.03747463]
[1748444951093,5.8925,169.64,169.63,0.03747463]
[1748444951296,31.88,169.66,169.6,1.967]
[1748444951487,31.88,169.66,169.59,8e-05]
[1748444951689,2.0585,169.65,169.59,8e-05]
[1748444951894,5.8942,169.59,169.58,81.63526731]
[1748444952197,37.7742,169.59,169.58,81.63526731]
[1748444952589,0.0422899,169.6,169.58,81.63526731]
[1748444954094,2.0585,169.69,169.58,81.63526731]
[1748444954291,35.21,169.67,169.33,31.88]
[1748444954495,35.21,169.67,169.42,2.0]
[1748444954696,5.8961,169.54,169.43,31.88]
[1748444955097,0.04287496,169.5,169.47,0.0422899]
[1748444955498,0.04287496,169.5,169.48,31.88]
[1748444956298,0.04287496,169.5,169.47,0.0422899]
[1748444956703,5.8981,169.48,169.47,8.99e-05]
[1748444959404,37.7981,169.48,169.47,8.99e-05]
[1748444960399,0.04287496,169.5,169.47,8.99e-05]
[1748444960799,5.898,169.49,169.47,8.99e-05]
[1748444960995,0.04287496,169.5,169.47,8.99e-05]
[1748444962108,0.04287496,169.5,169.49,5.8977]
[1748444962709,18.79,169.51,169.5,5.8974]
[1748444962903,15.6216,169.51,169.5,5.8974]
[1748444963204,31.9,169.56,169.47,8.99e-05]
[1748444963205,37.7953,169.56,169.52,5.8964]
[1748444963410,541.1,169.61,169.49,31.9]
[1748444963706,541.1,169.61,169.54,5.8957]
[1748444963707,0.04271654,169.57,169.54,5.8957]
[1748444963902,0.04271654,169.57,169.53,31.93815745]
[1748444964808,0.04271654,169.57,169.53,37.83445745]
[1748444965010,0.04271654,169.57,169.53,31.93815745]
[1748444965311,5.896,169.54,169.53,31.93815745]
[1748444965704,5.896,169.54,169.53,5.745e-05]
[1748444974311,5.898,169.48,169.47,5.745e-05]
[1748444975815,0.04027155,169.49,169.47,5.745e-05]
[1748444977822,33.0,169.6,169.47,5.90005745]
[1748444978017,33.0,169.6,169.48,1.9467]
[1748444978218,33.0,169.6,169.49,33.0]
[1748444978520,5.8973,169.5,169.49,33.0]
[1748444979419,0.03801096,169.51,169.49,38.9]
[1748444979620,18.1682,169.59,169.49,38.9]
[1748444979823,14.05,169.59,169.49,33.0]
[1748444980508,14.05,169.59,169.52,0.04006547]
[1748444980509,0.03785187,169.56,169.52,0.04006547]
[1748444981115,5.8962,169.54,169.52,0.04006547]
[1748444981318,0.03785187,169.56,169.52,0.04006547]
[1748444981512,5.8957,169.55,169.52,0.04006547]
[1748444982319,0.03785187,169.56,169.52,0.04006547]
[1748444984020,5.8963,169.53,169.52,0.04006547]
[1748444985018,5.8981,169.48,169.47,5.745e-05]
[1748444986319,0.04110519,169.49,169.47,5.745e-05]
[1748444986722,5.93890519,169.49,169.47,5.745e-05]
[1748444986924,0.04110519,169.49,169.47,5.745e-05]
[1748444987420,5.8981,169.48,169.47,5.745e-05]
[1748444987622,0.04110519,169.49,169.47,5.745e-05]
[1748444987821,5.8981,169.48,169.47,5.745e-05]
[1748444988121,0.04110519,169.49,169.48,5.8981]
[1748444988322,2.0483,169.57,169.48,33.0]
[1748444988620,5.8955,169.56,169.48,33.0]
[1748444988829,5.8955,169.56,169.52,5.8965]
[1748444989128,5.8962,169.54,169.48,33.0]
[1748444989320,0.04219948,169.53,169.49,0.04404259]
[1748444990132,5.93849948,169.53,169.49,0.04404259]
[1748444990514,0.04219948,169.53,169.49,0.04404259]
[1748444992828,5.897,169.51,169.49,0.04404259]
[1748444993626,5.8968,169.52,169.49,0.04404259]
[1748444994726,0.04219948,169.53,169.49,0.04404259]
[1748444995623,5.8973,169.5,169.49,0.04404259]
[1748444996121,5.8973,169.5,169.44,33.78]
[1748444996122,0.04219948,169.53,169.44,33.78]
[1748444996330,33.78,169.55,169.44,33.78]
[1748444996632,33.78,169.55,169.42,33.78]
[1748444997023,33.78,169.55,169.47,0.04008705]
[1748444997024,0.04370547,169.5,169.47,0.04008705]
[1748444997231,5.8983,169.48,169.47,0.04008705]
[1748444997426,0.04370547,169.5,169.47,0.04008705]
[1748444997828,5.898,169.48,169.47,0.04008705]
[1748445001925,0.04370547,169.5,169.47,0.04008705]
[1748445002324,5.898,169.48,169.47,0.04008705]
[1748445003021,5.8978,169.49,169.47,0.04008705]
[1748445003424,0.04370547,169.5,169.47,0.04008705]
[1748445003630,5.898,169.48,169.47,0.04008705]
[1748445004234,0.04370547,169.5,169.37,545.16]
[1748445004539,33.78,169.55,169.37,545.16]
[1748445004834,35.7,169.54,169.37,545.16]
[1748445005031,1.977,169.53,169.4,5.9007]
[1748445005332,0.04202708,169.48,169.37,545.16]
[1748445005535,0.03770115,169.44,169.39,5.9009]
[1748445005722,0.04378566,169.43,169.29,35.7]
[1748445006029,0.03729666,169.39,169.38,5.9015]
[1748445006233,0.04256878,169.4,169.35,35.7]
[1748445006631,0.04256878,169.4,169.35,41.6023]
[1748445006836,0.04256878,169.4,169.35,35.7]
[1748445007336,5.9014,169.39,169.35,35.7]
[1748445008037,5.94336878,169.4,169.36,5.9022]
[1748445008337,0.04256878,169.4,169.35,35.7]
[1748445009333,0.04256878,169.4,169.36,5.902]